Workbook

Sheet Rec x Desp
B2: GUIA RÁPIDO DE IMPLANTAÇÃO DE PLANOS FAMÍLIA
B3: Planilha Modelo de Avaliação da Viabilidade de criação do Plano Instituído
B4: Orientações gerais: Habilite as macros para funcionamento completo da Planilha. Preencha os parâmetros de acordo com as orientações (passe o mouse sobre as céculas para obter mais informações).
B5: Parâmetros
B7: Fundo Administrativo Compartilhado (Fundo de Fomento/PGA da Entidade) disponível para o projeto (R$)
B8: Dotação Inicial para custear o projeto (R$) | J8: 0
B9: Valor médio da hora de trabalho da equipe interna da EFPC (R$/hora) | J9: 0
B10: Taxa de juros mensal para atualização dos valores futuros (% a.m.) | J10: 0.0035
B11: Prazo estimado do projeto até a impltanação do plano (meses) | J11: 18
B12: Estimativa de horas gastas (média mensal) da equipe interna no prazo estimado para a implantação do plano (horas/mês) | J12: 200
B13: Despesa com consultoria na fase de reflexões iniciais e estudo de viabilidade - fase pré-operacional (R$) | J13: 15000
B14: Despesa com consultoria na montagem e acompanhamento do processo Previc (R$) | J14: 15000
B15: Despesas com prestadores de serviço para adaptação da infraestrutura tecnológica (R$) | J15: 50000
B16: Despesas fixas mensais atribuídas ao plano família (R$) | J16: 5000
B17: Incremento médio de despesa mensal por participante (R$ mensal/participante) | J17: 5
B18: Estimativa de novos ingressos mês - 1º ano de funcionamento (nº participantes) | J18: 200
B19: Estimativa de novos ingressos mês - a partir do 2º ano de funcionamento (nº participantes) | J19: 200
B20: Taxa de saída mês (% de participantes desligados) | J20: 0.01
B21: Contribuição média mensal (R$/mês) | J21: 200
B22: Percentual da contribuição destinada ao custeio dos benefícios de risco - Seguradora (% sobre contribuição) | J22: 0.15
B23: Taxa de carregamento (% sobre contribuição) | J23: 0
B24: Taxa de administração (% ao ano sobre o patrimônio) | J24: 0.01
B25: Pró-labore seguradora (% dos prêmios mensais arrecadados) | J25: 0.2
B28: Resultados
B30: Valor utilizado do Fundo Administrativo (PGA) dos demais planos da EFPC | F30: =MAX(0,-NPV(J10,O36:O235)) -> 109993.1475
B31: Mês de operação em que ocorreu a amortização total | F31: =IF(F30=0,"Não houve utilização de PGA dos demais planos da EFPC",IF((VLOOKUP(0,$M$36:$N$235,2)+1)=183,"Superior a 15 anos.",VLOOKUP(0,$M$36:$N$235,2)+1)) -> 33
B32: Atende ao requisito legal de amortização em 60 meses? | F32: =IF(F31>60,"Não. É necessário elevar receitas e/ou reduzir despesas","Sim") -> Sim
B33: ="Procurar ponto de equilíbrio ajustando o parâmetro:" -> Procurar ponto de equilíbrio ajustando o parâmetro: | L33: =MATCH(E33,B7:B25,0) -> 
A35: Mês | B35: Fase | C35: Nº Participantes | D35: Saldo Acumulado | E35: Despesas Pessoal Pré-Operacional | F35: Despesas Consult / Prest Serv Pré-operacional | G35: Despesas fixas operacionais | H35: Despesas variáveis operacionais | I35: Receitas Iniciais | J35: Receita Taxa Carreg | K35: Receita Taxa Adm | L35: Receita Pró-labore | M35: Fundo Adm Plano | N35: Mês de operação | O35: Utilização do Fundo Adm dos demais Planos
A36: 1 | B36: =IF(A36>$J$11,"Operacional","Pré-operacional") -> Pré-operacional | C36: =IF(B36="Pré-operacional",0,INT(IF(N36<13,$J$18,$J$19)+(C35*(1-$J$20)))) -> 0 | E36: =IF(B36="Pré-operacional",$J$12*$J$9,0) -> 0 | F36: =IF(B36="Pré-operacional",($J$13+$J$14+$J$15)/$J$11,0) -> 4444.444444 | G36: =IF(B36="Operacional",$J$16,0) -> 0 | H36: =C36*$J$17 -> 0 | I36: =J7+J8 -> 0 | J36: =C36*$J$21*(1-$J$22)*$J$23 -> 0 | K36: =(((1+$J$24)^(1/12))-1)*D36 -> 0 | L36: =C36*$J$21*$J$22*$J$25 -> 0 | M36: =SUM(I36:L36)-SUM(E36:H36) -> -4444.444444 | N36: =MAX(0,A36-$J$11) -> 0 | O36: =MIN(0,-SUM(E36:H36)+SUM(I36:L36)+MAX(0,M35)) -> -4444.444444
A37: 2 | B37: Pré-operacional | C37: 0 | D37: =((D36*(1+$J$10))*(1-$J$20))+C37*$J$21*(1-$J$22)*(1-$J$23) -> 0 | E37: 0 | F37: 4444.444444 | G37: 0 | H37: 0 | J37: 0 | K37: 0 | L37: 0 | M37: =M36*(1+$J$10)+SUM(I37:L37)-SUM(E37:H37) -> -8904.444444 | N37: 0 | O37: =MIN(0,-SUM(E37:H37)+SUM(I37:L37)+MAX(0,M36)) -> -4444.444444
A38: 3 | B38: Pré-operacional | C38: 0 | D38: 0 | E38: 0 | F38: 4444.444444 | G38: 0 | H38: 0 | J38: 0 | K38: 0 | L38: 0 | M38: -13380.05444 | N38: 0 | O38: -4444.444444
A39: 4 | B39: Pré-operacional | C39: 0 | D39: 0 | E39: 0 | F39: 4444.444444 | G39: 0 | H39: 0 | J39: 0 | K39: 0 | L39: 0 | M39: -17871.32908 | N39: 0 | O39: -4444.444444
A40: 5 | B40: Pré-operacional | C40: 0 | D40: 0 | E40: 0 | F40: 4444.444444 | G40: 0 | H40: 0 | J40: 0 | K40: 0 | L40: 0 | M40: -22378.32318 | N40: 0 | O40: -4444.444444
A41: 6 | B41: Pré-operacional | C41: 0 | D41: 0 | E41: 0 | F41: 4444.444444 | G41: 0 | H41: 0 | J41: 0 | K41: 0 | L41: 0 | M41: -26901.09175 | N41: 0 | O41: -4444.444444
A42: 7 | B42: Pré-operacional | C42: 0 | D42: 0 | E42: 0 | F42: 4444.444444 | G42: 0 | H42: 0 | J42: 0 | K42: 0 | L42: 0 | M42: -31439.69002 | N42: 0 | O42: -4444.444444
A43: 8 | B43: Pré-operacional | C43: 0 | D43: 0 | E43: 0 | F43: 4444.444444 | G43: 0 | H43: 0 | J43: 0 | K43: 0 | L43: 0 | M43: -35994.17338 | N43: 0 | O43: -4444.444444
A44: 9 | B44: Pré-operacional | C44: 0 | D44: 0 | E44: 0 | F44: 4444.444444 | G44: 0 | H44: 0 | J44: 0 | K44: 0 | L44: 0 | M44: -40564.59743 | N44: 0 | O44: -4444.444444
A45: 10 | B45: Pré-operacional | C45: 0 | D45: 0 | E45: 0 | F45: 4444.444444 | G45: 0 | H45: 0 | J45: 0 | K45: 0 | L45: 0 | M45: -45151.01796 | N45: 0 | O45: -4444.444444
A46: 11 | B46: Pré-operacional | C46: 0 | D46: 0 | E46: 0 | F46: 4444.444444 | G46: 0 | H46: 0 | J46: 0 | K46: 0 | L46: 0 | M46: -49753.49097 | N46: 0 | O46: -4444.444444
A47: 12 | B47: Pré-operacional | C47: 0 | D47: 0 | E47: 0 | F47: 4444.444444 | G47: 0 | H47: 0 | J47: 0 | K47: 0 | L47: 0 | M47: -54372.07263 | N47: 0 | O47: -4444.444444
A48: 13 | B48: Pré-operacional | C48: 0 | D48: 0 | E48: 0 | F48: 4444.444444 | G48: 0 | H48: 0 | J48: 0 | K48: 0 | L48: 0 | M48: -59006.81933 | N48: 0 | O48: -4444.444444
A49: 14 | B49: Pré-operacional | C49: 0 | D49: 0 | E49: 0 | F49: 4444.444444 | G49: 0 | H49: 0 | J49: 0 | K49: 0 | L49: 0 | M49: -63657.78764 | N49: 0 | O49: -4444.444444
A50: 15 | B50: Pré-operacional | C50: 0 | D50: 0 | E50: 0 | F50: 4444.444444 | G50: 0 | H50: 0 | J50: 0 | K50: 0 | L50: 0 | M50: -68325.03435 | N50: 0 | O50: -4444.444444
A51: 16 | B51: Pré-operacional | C51: 0 | D51: 0 | E51: 0 | F51: 4444.444444 | G51: 0 | H51: 0 | J51: 0 | K51: 0 | L51: 0 | M51: -73008.61641 | N51: 0 | O51: -4444.444444
A52: 17 | B52: Pré-operacional | C52: 0 | D52: 0 | E52: 0 | F52: 4444.444444 | G52: 0 | H52: 0 | J52: 0 | K52: 0 | L52: 0 | M52: -77708.59101 | N52: 0 | O52: -4444.444444
A53: 18 | B53: Pré-operacional | C53: 0 | D53: 0 | E53: 0 | F53: 4444.444444 | G53: 0 | H53: 0 | J53: 0 | K53: 0 | L53: 0 | M53: -82425.01552 | N53: 0 | O53: -4444.444444
A54: 19 | B54: Operacional | C54: 200 | D54: 34000 | E54: 0 | F54: 0 | G54: 5000 | H54: 1000 | J54: 0 | K54: 28.20429589 | L54: 1200 | M54: -87485.29878 | N54: 1 | O54: -4771.795704
A55: 20 | B55: Operacional | C55: 398 | D55: 101437.81 | E55: 0 | F55: 0 | G55: 5000 | H55: 1990 | J55: 0 | K55: 84.14652963 | L55: 2388 | M55: -92309.3508 | N55: 2 | O55: -4517.85347
A56: 21 | B56: Operacional | C56: 594 | D56: 201754.9139 | E56: 0 | F56: 0 | G56: 5000 | H56: 2970 | J56: 0 | K56: 167.3633908 | L56: 3564 | M56: -96871.07014 | N56: 3 | O56: -4238.636609
A57: 22 | B57: Operacional | C57: 788 | D57: 334396.4455 | E57: 0 | F57: 0 | G57: 5000 | H57: 3940 | J57: 0 | K57: 277.3945969 | L57: 4728 | M57: -101144.7243 | N57: 4 | O57: -3934.605403
A58: 23 | B58: Operacional | C58: 980 | D58: 498811.1648 | E58: 0 | F58: 0 | G58: 5000 | H58: 4900 | J58: 0 | K58: 413.782873 | L58: 5880 | M58: -105104.9479 | N58: 5 | O58: -3606.217127
A59: 24 | B59: Operacional | C59: 1170 | D59: 694451.4338 | E59: 0 | F59: 0 | G59: 5000 | H59: 5850 | J59: 0 | K59: 576.0739329 | L59: 7020 | M59: -108726.7413 | N59: 6 | O59: -3253.926067
A60: 25 | B60: Operacional | C60: 1358 | D60: 920773.1937 | E60: 0 | F60: 0 | G60: 5000 | H60: 6790 | J60: 0 | K60: 763.8164588 | L60: 8148 | M60: -111985.4685 | N60: 7 | O60: -2878.183541
A61: 26 | B61: Operacional | C61: 1544 | D61: 1177235.941 | E61: 0 | F61: 0 | G61: 5000 | H61: 7720 | J61: 0 | K61: 976.5620825 | L61: 9264 | M61: -114856.8555 | N61: 8 | O61: -2479.437917
A62: 27 | B62: Operacional | C62: 1728 | D62: 1463302.704 | E62: 0 | F62: 0 | G62: 5000 | H62: 8640 | J62: 0 | K62: 1213.865366 | L62: 10368 | M62: -117316.9892 | N62: 9 | O62: -2058.134634
A63: 28 | B63: Operacional | C63: 1910 | D63: 1778440.021 | E63: 0 | F63: 0 | G63: 5000 | H63: 9550 | J63: 0 | K63: 1475.283781 | L63: 11460 | M63: -119342.3148 | N63: 10 | O63: -1614.716219
A64: 29 | B64: Operacional | C64: 2090 | D64: 2122117.915 | E64: 0 | F64: 0 | G64: 5000 | H64: 10450 | J64: 0 | K64: 1760.377694 | L64: 12540 | M64: -120909.6352 | N64: 11 | O64: -1149.622306
A65: 30 | B65: Operacional | C65: 2269 | D65: 2493979.875 | E65: 0 | F65: 0 | G65: 5000 | H65: 11345 | J65: 0 | K65: 2068.851362 | L65: 13614 | M65: -121994.9676 | N65: 12 | O65: -662.1486375
A66: 31 | B66: Operacional | C66: 2446 | D66: 2893501.716 | E66: 0 | F66: 0 | G66: 5000 | H66: 12230 | J66: 0 | K66: 2400.269958 | L66: 14676 | M66: -122575.68 | N66: 13 | O66: -153.7300425
A67: 32 | B67: Operacional | C67: 2621 | D67: 3320162.683 | E67: 0 | F67: 0 | G67: 5000 | H67: 13105 | J67: 0 | K67: 2754.201491 | L67: 15726 | M67: -122629.4934 | N67: 14 | O67: 0
A68: 33 | B68: =IF(A68>$J$11,"Operacional","Pré-operacional") -> Operacional | C68: =IF(B68="Pré-operacional",0,INT(IF(N68<13,$J$18,$J$19)+(C67*(1-$J$20)))) -> 2794 | D68: 3773445.419 | E68: =IF(B68="Pré-operacional",$J$12*$J$9,0) -> 0 | F68: =IF(B68="Pré-operacional",($J$13+$J$14+$J$15)/$J$11,0) -> 0 | G68: =IF(B68="Operacional",$J$16,0) -> 5000 | H68: =C68*$J$17 -> 13970 | J68: =C68*$J$21*(1-$J$22)*$J$23 -> 0 | K68: =(((1+$J$24)^(1/12))-1)*D68 -> 3130.216798 | L68: =C68*$J$21*$J$22*$J$25 -> 16764 | M68: -122134.4799 | N68: =MAX(0,A68-$J$11) -> 15 | O68: 0
A69: 34 | B69: Operacional | C69: 2966 | D69: 4253005.954 | E69: 0 | F69: 0 | G69: 5000 | H69: 14830 | J69: 0 | K69: 3528.030539 | L69: 17796 | M69: =M68*(1+$J$10)+SUM(I69:L69)-SUM(E69:H69) -> -121067.92 | N69: 16 | O69: 0
A70: 35 | B70: Operacional | C70: 3136 | D70: 4758332.56 | E70: 0 | F70: 0 | G70: 5000 | H70: 15680 | J70: 0 | K70: 3947.218219 | L70: 18816 | M70: -119408.4395 | N70: 17 | O70: 0
A71: 36 | B71: Operacional | C71: 3304 | D71: 5288916.856 | E71: 0 | F71: 0 | G71: 5000 | H71: 16520 | J71: 0 | K71: 4387.358116 | L71: 19824 | M71: -117135.0109 | N71: 18 | O71: 0
A72: 37 | B72: Operacional | C72: 3470 | D72: 5844253.785 | E72: 0 | F72: 0 | G72: 5000 | H72: 17350 | J72: 0 | K72: 4848.031264 | L72: 20820 | M72: -114226.9522 | N72: 19 | O72: 0
A73: 38 | B73: Operacional | C73: 3635 | D73: 6424011.586 | E73: 0 | F73: 0 | G73: 5000 | H73: 18175 | J73: 0 | K73: 5328.962458 | L73: 21810 | M73: -110662.7841 | N73: 20 | O73: 0
A74: 39 | B74: Operacional | C74: 3798 | D74: 7027690.671 | E74: 0 | F74: 0 | G74: 5000 | H74: 18990 | J74: 0 | K74: 5829.737267 | L74: 22788 | M74: -106422.3665 | N74: 21 | O74: 0
A75: 40 | B75: Operacional | C75: 3960 | D75: 7654964.712 | E75: 0 | F75: 0 | G75: 5000 | H75: 19800 | J75: 0 | K75: 6350.084993 | L75: 23760 | M75: -101484.7598 | N75: 22 | O75: 0
A76: 41 | B76: Operacional | C76: 4120 | D76: 8305339.518 | E76: 0 | F76: 0 | G76: 5000 | H76: 20600 | J76: 0 | K76: 6889.595682 | L76: 24720 | M76: -95830.36081 | N76: 23 | O76: 0
A77: 42 | B77: Operacional | C77: 4278 | D77: 8978324.124 | E77: 0 | F77: 0 | G77: 5000 | H77: 21390 | J77: 0 | K77: 7447.862064 | L77: 25668 | M77: -89439.90501 | N77: 24 | O77: 0
A78: 43 | B78: Operacional | C78: 4435 | D78: 9673600.776 | E78: 0 | F78: 0 | G78: 5000 | H78: 22175 | J78: 0 | K78: 8024.620546 | L78: 26610 | M78: -82293.32413 | N78: 25 | O78: 0
A79: 44 | B79: Operacional | C79: 4590 | D79: 10390683.79 | E79: 0 | F79: 0 | G79: 5000 | H79: 22950 | J79: 0 | K79: 8619.468242 | L79: 27540 | M79: -74371.88252 | N79: 26 | O79: 0
A80: 45 | B80: Operacional | C80: 4744 | D80: 11129260.68 | E80: 0 | F80: 0 | G80: 5000 | H80: 23720 | J80: 0 | K80: 9232.145915 | L80: 28464 | M80: -65656.03819 | N80: 27 | O80: 0
A81: 46 | B81: Operacional | C81: 4896 | D81: 11888850.96 | E81: 0 | F81: 0 | G81: 5000 | H81: 24480 | J81: 0 | K81: 9862.255005 | L81: 29376 | M81: -56127.57932 | N81: 28 | O81: 0
A82: 47 | B82: Operacional | C82: 5047 | D82: 12669147.32 | E82: 0 | F82: 0 | G82: 5000 | H82: 25235 | J82: 0 | K82: 10509.54058 | L82: 30282 | M82: -45767.48527 | N82: 29 | O82: 0
A83: 48 | B83: Operacional | C83: 5196 | D83: 13469674.44 | E83: 0 | F83: 0 | G83: 5000 | H83: 25980 | J83: 0 | K83: 11173.60833 | L83: 31176 | M83: -34558.06314 | N83: 30 | O83: 0
A84: 49 | B84: Operacional | C84: 5344 | D84: 14290130.12 | E84: 0 | F84: 0 | G84: 5000 | H84: 26720 | J84: 0 | K84: 11854.20759 | L84: 32064 | M84: -22480.80877 | N84: 31 | O84: 0
A85: 50 | B85: Operacional | C85: 5490 | D85: 15130044.12 | E85: 0 | F85: 0 | G85: 5000 | H85: 27450 | J85: 0 | K85: 12550.94827 | L85: 32940 | M85: -9518.543333 | N85: 32 | O85: 0
A86: 51 | B86: Operacional | C86: 5635 | D86: 15989119.28 | E86: 0 | F86: 0 | G86: 5000 | H86: 28175 | J86: 0 | K86: 13263.58386 | L86: 33810 | M86: 4346.725621 | N86: 33 | O86: 0
A87: 52 | B87: Operacional | C87: 5778 | D87: 16866890.38 | E87: 0 | F87: 0 | G87: 5000 | H87: 28890 | J87: 0 | K87: 13991.72844 | L87: 34668 | M87: 19131.6676 | N87: 34 | O87: 0
A88: 53 | B88: Operacional | C88: 5920 | D88: 17763065.25 | E88: 0 | F88: 0 | G88: 5000 | H88: 29600 | J88: 0 | K88: 14735.13966 | L88: 35520 | M88: 34853.7681 | N88: 35 | O88: 0
A89: 54 | B89: Operacional | C89: 6060 | D89: 18677183.62 | E89: 0 | F89: 0 | G89: 5000 | H89: 30300 | J89: 0 | K89: 15493.43568 | L89: 36360 | M89: 51529.19197 | N89: 36 | O89: 0
A90: 55 | B90: Operacional | C90: 6199 | D90: 19608958.23 | E90: 0 | F90: 0 | G90: 5000 | H90: 30995 | J90: 0 | K90: 16266.37823 | L90: 37194 | M90: 69174.92237 | N90: 37 | O90: 0
A91: 56 | B91: Operacional | C91: 6337 | D91: 20558103.69 | E91: 0 | F91: 0 | G91: 5000 | H91: 31685 | J91: 0 | K91: 17053.73057 | L91: 38022 | M91: 87807.76517 | N91: 38 | O91: 0
A92: 57 | B92: Operacional | C92: 6473 | D92: 21524166.48 | E92: 0 | F92: 0 | G92: 5000 | H92: 32365 | J92: 0 | K92: 17855.11647 | L92: 38838 | M92: 107443.2088 | N92: 39 | O92: 0
A93: 58 | B93: Operacional | C93: 6608 | D93: 22506866.05 | E93: 0 | F93: 0 | G93: 5000 | H93: 33040 | J93: 0 | K93: 18670.30322 | L93: 39648 | M93: 128097.5633 | N93: 40 | O93: 0
A94: 59 | B94: Operacional | C94: 6741 | D94: 23505753.68 | E94: 0 | F94: 0 | G94: 5000 | H94: 33705 | J94: 0 | K94: 19498.91858 | L94: 40446 | M94: 149785.8233 | N94: 41 | O94: 0
A95: 60 | B95: Operacional | C95: 6873 | D95: 24520553.58 | E95: 0 | F95: 0 | G95: 5000 | H95: 34365 | J95: 0 | K95: 20340.73378 | L95: 41238 | M95: 172523.8075 | N95: 42 | O95: 0
A96: 61 | B96: Operacional | C96: 7004 | D96: 25550991.76 | E96: 0 | F96: 0 | G96: 5000 | H96: 35020 | J96: 0 | K96: 21195.52153 | L96: 42024 | M96: 196327.1623 | N96: 43 | O96: 0
A97: 62 | B97: Operacional | C97: 7133 | D97: 26596626.03 | E97: 0 | F97: 0 | G97: 5000 | H97: 35665 | J97: 0 | K97: 22062.91501 | L97: 42798 | M97: 221210.2224 | N97: 44 | O97: 0
A98: 63 | B98: Operacional | C98: 7261 | D98: 27657187.08 | E98: 0 | F98: 0 | G98: 5000 | H98: 36305 | J98: 0 | K98: 22942.69082 | L98: 43566 | M98: 247188.149 | N98: 45 | O98: 0
A99: 64 | B99: Operacional | C99: 7388 | D99: 28732407.36 | E99: 0 | F99: 0 | G99: 5000 | H99: 36940 | J99: 0 | K99: 23834.62702 | L99: 44328 | M99: 274275.9346 | N99: 46 | O99: 0
A100: 65 | B100: =IF(A100>$J$11,"Operacional","Pré-operacional") -> Operacional | C100: =IF(B100="Pré-operacional",0,INT(IF(N100<13,$J$18,$J$19)+(C99*(1-$J$20)))) -> 7514 | D100: 29822021.08 | E100: =IF(B100="Pré-operacional",$J$12*$J$9,0) -> 0 | F100: =IF(B100="Pré-operacional",($J$13+$J$14+$J$15)/$J$11,0) -> 0 | G100: =IF(B100="Operacional",$J$16,0) -> 5000 | H100: =C100*$J$17 -> 37570 | J100: =C100*$J$21*(1-$J$22)*$J$23 -> 0 | K100: =(((1+$J$24)^(1/12))-1)*D100 -> 24738.50313 | L100: =C100*$J$21*$J$22*$J$25 -> 45084 | M100: 302488.4035 | N100: =MAX(0,A100-$J$11) -> 47 | O100: 0
A101: 66 | B101: Operacional | C101: 7638 | D101: =((D100*(1+$J$10))*(1-$J$20))+C101*$J$21*(1-$J$22)*(1-$J$23) -> 30925594.17 | E101: 0 | F101: 0 | G101: 5000 | H101: 38190 | J101: 0 | K101: 25653.95908 | L101: 45828 | M101: =M100*(1+$J$10)+SUM(I101:L101)-SUM(E101:H101) -> 331839.072 | N101: 48 | O101: =MIN(0,-SUM(E101:H101)+SUM(I101:L101)+MAX(0,M100)) -> 0
A102: 67 | B102: Operacional | C102: 7761 | D102: 32042865.42 | E102: 0 | F102: 0 | G102: 5000 | H102: 38805 | J102: 0 | K102: 26580.77815 | L102: 46566 | M102: 362342.2869 | N102: 49 | O102: 0
A103: 68 | B103: Operacional | C103: 7883 | D103: 33173575.29 | E103: 0 | F103: 0 | G103: 5000 | H103: 39415 | J103: 0 | K103: 27518.74509 | L103: 47298 | M103: 394012.23 | N103: 50 | O103: 0
A104: 69 | B104: Operacional | C104: 8004 | D104: 34317465.98 | E104: 0 | F104: 0 | G104: 5000 | H104: 40020 | J104: 0 | K104: 28467.64601 | L104: 48024 | M104: 426862.9188 | N104: 51 | O104: 0
A105: 70 | B105: Operacional | C105: 8123 | D105: 35474111.34 | E105: 0 | F105: 0 | G105: 5000 | H105: 40615 | J105: 0 | K105: 29427.12743 | L105: 48738 | M105: 460907.0664 | N105: 52 | O105: 0
A106: 71 | B106: Operacional | C106: 8241 | D106: 36643258.02 | E106: 0 | F106: 0 | G106: 5000 | H106: 41205 | J106: 0 | K106: 30396.97916 | L106: 49446 | M106: 496158.2203 | N106: 53 | O106: 0
A107: 72 | B107: Operacional | C107: 8358 | D107: 37824654.33 | E107: 0 | F107: 0 | G107: 5000 | H107: 41790 | J107: 0 | K107: 31376.99243 | L107: 50148 | M107: 532629.7665 | N107: 54 | O107: 0
A108: 73 | B108: Operacional | C108: 8474 | D108: 39018050.21 | E108: 0 | F108: 0 | G108: 5000 | H108: 42370 | J108: 0 | K108: 32366.9598 | L108: 50844 | M108: 570334.9305 | N108: 55 | O108: 0
A109: 74 | B109: Operacional | C109: 8589 | D109: 40223197.25 | E109: 0 | F109: 0 | G109: 5000 | H109: 42945 | J109: 0 | K109: 33366.6752 | L109: 51534 | M109: 609286.7779 | N109: 56 | O109: 0
A110: 75 | B110: Operacional | C110: 8703 | D110: 41439848.66 | E110: 0 | F110: 0 | G110: 5000 | H110: 43515 | J110: 0 | K110: 34375.93391 | L110: 52218 | M110: 649498.2156 | N110: 57 | O110: 0
A111: 76 | B111: Operacional | C111: 8815 | D111: 42667589.25 | E111: 0 | F111: 0 | G111: 5000 | H111: 44075 | J111: 0 | K111: 35394.39153 | L111: 52890 | M111: 690980.8509 | N111: 58 | O111: 0
A112: 77 | B112: Operacional | C112: 8926 | D112: 43906176.55 | E112: 0 | F112: 0 | G112: 5000 | H112: 44630 | J112: 0 | K112: 36421.8469 | L112: 53556 | M112: 733747.1307 | N112: 59 | O112: 0
A113: 78 | B113: Operacional | C113: 9036 | D113: 45155369.69 | E113: 0 | F113: 0 | G113: 5000 | H113: 45180 | J113: 0 | K113: 37458.10022 | L113: 54216 | M113: 777809.3459 | N113: 60 | O113: 0
A114: 79 | B114: Operacional | C114: 9145 | D114: 46414929.35 | E114: 0 | F114: 0 | G114: 5000 | H114: 45725 | J114: 0 | K114: 38502.95297 | L114: 54870 | M114: 823179.6316 | N114: 61 | O114: 0
A115: 80 | B115: Operacional | C115: 9253 | D115: 47684617.78 | E115: 0 | F115: 0 | G115: 5000 | H115: 46265 | J115: 0 | K115: 39556.20792 | L115: 55518 | M115: 869869.9682 | N115: 62 | O115: 0
A116: 81 | B116: Operacional | C116: 9360 | D116: 48964198.81 | E116: 0 | F116: 0 | G116: 5000 | H116: 46800 | J116: 0 | K116: 40617.66915 | L116: 56160 | M116: 917892.1823 | N116: 63 | O116: 0
A117: 82 | B117: Operacional | C117: 9466 | D117: 50253437.77 | E117: 0 | F117: 0 | G117: 5000 | H117: 47330 | J117: 0 | K117: 41687.142 | L117: 56796 | M117: 967257.9469 | N117: 64 | O117: 0
A118: 83 | B118: Operacional | C118: 9571 | D118: 51552101.55 | E118: 0 | F118: 0 | G118: 5000 | H118: 47855 | J118: 0 | K118: 42764.43311 | L118: 57426 | M118: 1017978.783 | N118: 65 | O118: 0
A119: 84 | B119: Operacional | C119: 9675 | D119: 52859958.57 | E119: 0 | F119: 0 | G119: 5000 | H119: 48375 | J119: 0 | K119: 43849.35035 | L119: 58050 | M119: 1070066.059 | N119: 66 | O119: 0
A120: 85 | B120: Operacional | C120: 9778 | D120: 54176778.74 | E120: 0 | F120: 0 | G120: 5000 | H120: 48890 | J120: 0 | K120: 44941.70288 | L120: 58668 | M120: 1123530.993 | N120: 67 | O120: 0
A121: 86 | B121: Operacional | C121: 9880 | D121: 55502333.49 | E121: 0 | F121: 0 | G121: 5000 | H121: 49400 | J121: 0 | K121: 46041.30106 | L121: 59280 | M121: 1178384.653 | N121: 68 | O121: 0
A122: 87 | B122: Operacional | C122: 9981 | D122: 56836395.74 | E122: 0 | F122: 0 | G122: 5000 | H122: 49905 | J122: 0 | K122: 47147.95655 | L122: 59886 | M122: 1234637.955 | N122: 69 | O122: 0
A123: 88 | B123: Operacional | C123: 10081 | D123: 58178739.89 | E123: 0 | F123: 0 | G123: 5000 | H123: 50405 | J123: 0 | K123: 48261.48219 | L123: 60486 | M123: 1292301.67 | N123: 70 | O123: 0
A124: 89 | B124: Operacional | C124: 10180 | D124: 59529141.83 | E124: 0 | F124: 0 | G124: 5000 | H124: 50900 | J124: 0 | K124: 49381.69206 | L124: 61080 | M124: 1351386.418 | N124: 71 | O124: 0
A125: 90 | B125: Operacional | C125: 10278 | D125: 60887378.89 | E125: 0 | F125: 0 | G125: 5000 | H125: 51390 | J125: 0 | K125: 50508.40147 | L125: 61668 | M125: 1411902.672 | N125: 72 | O125: 0
A126: 91 | B126: Operacional | C126: 10375 | D126: 62253229.87 | E126: 0 | F126: 0 | G126: 5000 | H126: 51875 | J126: 0 | K126: 51641.42691 | L126: 62250 | M126: 1473860.759 | N126: 73 | O126: 0
A127: 92 | B127: Operacional | C127: 10471 | D127: 63626475.01 | E127: 0 | F127: 0 | G127: 5000 | H127: 52355 | J127: 0 | K127: 52780.5861 | L127: 62826 | M127: 1537270.857 | N127: 74 | O127: 0
A128: 93 | B128: Operacional | C128: 10566 | D128: 65006895.99 | E128: 0 | F128: 0 | G128: 5000 | H128: 52830 | J128: 0 | K128: 53925.69792 | L128: 63396 | M128: 1602143.003 | N128: 75 | O128: 0
A129: 94 | B129: Operacional | C129: 10660 | D129: 66394275.93 | E129: 0 | F129: 0 | G129: 5000 | H129: 53300 | J129: 0 | K129: 55076.58246 | L129: 63960 | M129: 1668487.086 | N129: 76 | O129: 0
A130: 95 | B130: Operacional | C130: 10753 | D130: 67788399.34 | E130: 0 | F130: 0 | G130: 5000 | H130: 53765 | J130: 0 | K130: 56233.06096 | L130: 64518 | M130: 1736312.852 | N130: 77 | O130: 0
A131: 96 | B131: Operacional | C131: 10845 | D131: 69189052.15 | E131: 0 | F131: 0 | G131: 5000 | H131: 54225 | J131: 0 | K131: 57394.95585 | L131: 65070 | M131: 1805629.903 | N131: 78 | O131: 0
A132: 97 | B132: =IF(A132>$J$11,"Operacional","Pré-operacional") -> Operacional | C132: =IF(B132="Pré-operacional",0,INT(IF(N132<13,$J$18,$J$19)+(C131*(1-$J$20)))) -> 10936 | D132: 70596021.69 | E132: =IF(B132="Pré-operacional",$J$12*$J$9,0) -> 0 | F132: =IF(B132="Pré-operacional",($J$13+$J$14+$J$15)/$J$11,0) -> 0 | G132: =IF(B132="Operacional",$J$16,0) -> 5000 | H132: =C132*$J$17 -> 54680 | J132: =C132*$J$21*(1-$J$22)*$J$23 -> 0 | K132: =(((1+$J$24)^(1/12))-1)*D132 -> 58562.09071 | L132: =C132*$J$21*$J$22*$J$25 -> 65616 | M132: 1876447.698 | N132: =MAX(0,A132-$J$11) -> 79 | O132: 0
A133: 98 | B133: Operacional | C133: 11026 | D133: 72009096.69 | E133: 0 | F133: 0 | G133: 5000 | H133: 55130 | J133: 0 | K133: 59734.29028 | L133: 66156 | M133: =M132*(1+$J$10)+SUM(I133:L133)-SUM(E133:H133) -> 1948775.555 | N133: 80 | O133: 0
A134: 99 | B134: Operacional | C134: 11115 | D134: 73428067.24 | E134: 0 | F134: 0 | G134: 5000 | H134: 55575 | J134: 0 | K134: 60911.38044 | L134: 66690 | M134: 2022622.65 | N134: 81 | O134: 0
A135: 100 | B135: Operacional | C135: 11203 | D135: 74852724.82 | E135: 0 | F135: 0 | G135: 5000 | H135: 56015 | J135: 0 | K135: 62093.1882 | L135: 67218 | M135: 2097998.018 | N135: 82 | O135: 0
A136: 101 | B136: Operacional | C136: 11290 | D136: 76282862.27 | E136: 0 | F136: 0 | G136: 5000 | H136: 56450 | J136: 0 | K136: 63279.54172 | L136: 67740 | M136: 2174910.553 | N136: 83 | O136: 0
A137: 102 | B137: Operacional | C137: 11377 | D137: 77718443.76 | E137: 0 | F137: 0 | G137: 5000 | H137: 56885 | J137: 0 | K137: 64470.41129 | L137: 68262 | M137: 2253370.151 | N137: 84 | O137: 0
A138: 103 | B138: Operacional | C138: 11463 | D138: 79159263.73 | E138: 0 | F138: 0 | G138: 5000 | H138: 57315 | J138: 0 | K138: 65665.62637 | L138: 68778 | M138: 2333385.573 | N138: 85 | O138: 0
A139: 104 | B139: Operacional | C139: 11548 | D139: 80605117.94 | E139: 0 | F139: 0 | G139: 5000 | H139: 57740 | J139: 0 | K139: 66865.01754 | L139: 69288 | M139: 2414965.44 | N139: 86 | O139: 0
A140: 105 | B140: Operacional | C140: 11632 | D140: 82055803.5 | E140: 0 | F140: 0 | G140: 5000 | H140: 58160 | J140: 0 | K140: 68068.4165 | L140: 69792 | M140: 2498118.235 | N140: 87 | O140: 0
A141: 106 | B141: Operacional | C141: 11715 | D141: 83511118.82 | E141: 0 | F141: 0 | G141: 5000 | H141: 58575 | J141: 0 | K141: 69275.65603 | L141: 70290 | M141: 2582852.305 | N141: 88 | O141: 0
A142: 107 | B142: Operacional | C142: 11797 | D142: 84970863.66 | E142: 0 | F142: 0 | G142: 5000 | H142: 58985 | J142: 0 | K142: 70486.57001 | L142: 70782 | M142: 2669175.858 | N142: 89 | O142: 0
A143: 108 | B143: Operacional | C143: 11879 | D143: 86435009.07 | E143: 0 | F143: 0 | G143: 5000 | H143: 59395 | J143: 0 | K143: 71701.13443 | L143: 71274 | M143: 2757098.108 | N143: 90 | O143: 0
A144: 109 | B144: Operacional | C144: 11960 | D144: 87903356.28 | E144: 0 | F144: 0 | G144: 5000 | H144: 59800 | J144: 0 | K144: 72919.18441 | L144: 71760 | M144: 2846627.136 | N144: 91 | O144: 0
A145: 110 | B145: Operacional | C145: 12040 | D145: 89375707.85 | E145: 0 | F145: 0 | G145: 5000 | H145: 60200 | J145: 0 | K145: 74140.55616 | L145: 72240 | M145: 2937770.887 | N145: 92 | O145: 0
A146: 111 | B146: Operacional | C146: 12119 | D146: 90851867.6 | E146: 0 | F146: 0 | G146: 5000 | H146: 60595 | J146: 0 | K146: 75365.08693 | L146: 72714 | M146: 3030537.172 | N146: 93 | O146: 0
A147: 112 | B147: Operacional | C147: 12197 | D147: 92331640.64 | E147: 0 | F147: 0 | G147: 5000 | H147: 60985 | J147: 0 | K147: 76592.61507 | L147: 73182 | M147: 3124933.667 | N147: 94 | O147: 0
A148: 113 | B148: Operacional | C148: 12275 | D148: 93815003.37 | E148: 0 | F148: 0 | G148: 5000 | H148: 61375 | J148: 0 | K148: 77823.12099 | L148: 73650 | M148: 3220969.056 | N148: 95 | O148: 0
A149: 114 | B149: Operacional | C149: 12352 | D149: 95301762.32 | E149: 0 | F149: 0 | G149: 5000 | H149: 61760 | J149: 0 | K149: 79056.44421 | L149: 74112 | M149: 3318650.892 | N149: 96 | O149: 0
A150: 115 | B150: Operacional | C150: 12428 | D150: 96791725.31 | E150: 0 | F150: 0 | G150: 5000 | H150: 62140 | J150: 0 | K150: 80292.4253 | L150: 74568 | M150: 3417986.595 | N150: 97 | O150: 0
A151: 116 | B151: Operacional | C151: 12503 | D151: 98284701.38 | E151: 0 | F151: 0 | G151: 5000 | H151: 62515 | J151: 0 | K151: 81530.90585 | L151: 75018 | M151: 3518983.454 | N151: 98 | O151: 0
A152: 117 | B152: Operacional | C152: 12577 | D152: 99780500.86 | E152: 0 | F152: 0 | G152: 5000 | H152: 62885 | J152: 0 | K152: 82771.72853 | L152: 75462 | M152: 3621648.625 | N152: 99 | O152: 0
A153: 118 | B153: Operacional | C153: 12651 | D153: 101279105.3 | E153: 0 | F153: 0 | G153: 5000 | H153: 63255 | J153: 0 | K153: 84014.87802 | L153: 75906 | M153: 3725990.273 | N153: 100 | O153: 0
A154: 119 | B154: Operacional | C154: 12724 | D154: 102780326.3 | E154: 0 | F154: 0 | G154: 5000 | H154: 63620 | J154: 0 | K154: 85260.1981 | L154: 76344 | M154: 3832015.437 | N154: 101 | O154: 0
A155: 120 | B155: Operacional | C155: 12796 | D155: 104283976.9 | E155: 0 | F155: 0 | G155: 5000 | H155: 63980 | J155: 0 | K155: 86507.53355 | L155: 76776 | M155: 3939731.025 | N155: 102 | O155: 0
A156: 121 | B156: Operacional | C156: 12868 | D156: 105790041.1 | E156: 0 | F156: 0 | G156: 5000 | H156: 64340 | J156: 0 | K156: 87756.87122 | L156: 77208 | M156: 4049144.955 | N156: 103 | O156: 0
A157: 122 | B157: Operacional | C157: 12939 | D157: 107298333.2 | E157: 0 | F157: 0 | G157: 5000 | H157: 64695 | J157: 0 | K157: 89008.05699 | L157: 77634 | M157: 4160264.019 | N157: 104 | O157: 0
A158: 123 | B158: Operacional | C158: 13009 | D158: 108808668.6 | E158: 0 | F158: 0 | G158: 5000 | H158: 65045 | J158: 0 | K158: 90260.93776 | L158: 78054 | M158: 4273094.881 | N158: 105 | O158: 0
A159: 124 | B159: Operacional | C159: 13078 | D159: 110320863.9 | E159: 0 | F159: 0 | G159: 5000 | H159: 65390 | J159: 0 | K159: 91515.36144 | L159: 78468 | M159: 4387644.074 | N159: 106 | O159: 0
A160: 125 | B160: Operacional | C160: 13147 | D160: 111834907.1 | E160: 0 | F160: 0 | G160: 5000 | H160: 65735 | J160: 0 | K160: 92771.31795 | L160: 78882 | M160: 4503919.146 | N160: 107 | O160: 0
A161: 126 | B161: Operacional | C161: 13215 | D161: 113350616 | E161: 0 | F161: 0 | G161: 5000 | H161: 66075 | J161: 0 | K161: 94028.65623 | L161: 79290 | M161: 4621926.52 | N161: 108 | O161: 0
A162: 127 | B162: Operacional | C162: 13282 | D162: 114867809.7 | E162: 0 | F162: 0 | G162: 5000 | H162: 66410 | J162: 0 | K162: 95287.22625 | L162: 79692 | M162: 4741672.489 | N162: 109 | O162: 0
A163: 128 | B163: Operacional | C163: 13349 | D163: 116386478.6 | E163: 0 | F163: 0 | G163: 5000 | H163: 66745 | J163: 0 | K163: 96547.01996 | L163: 80094 | M163: 4863164.362 | N163: 110 | O163: 0
A164: 129 | B164: =IF(A164>$J$11,"Operacional","Pré-operacional") -> Operacional | C164: =IF(B164="Pré-operacional",0,INT(IF(N164<13,$J$18,$J$19)+(C163*(1-$J$20)))) -> 13415 | D164: 117906442.9 | E164: =IF(B164="Pré-operacional",$J$12*$J$9,0) -> 0 | F164: =IF(B164="Pré-operacional",($J$13+$J$14+$J$15)/$J$11,0) -> 0 | G164: =IF(B164="Operacional",$J$16,0) -> 5000 | H164: =C164*$J$17 -> 67075 | J164: =C164*$J$21*(1-$J$22)*$J$23 -> 0 | K164: =(((1+$J$24)^(1/12))-1)*D164 -> 97807.88833 | L164: =C164*$J$21*$J$22*$J$25 -> 80490 | M164: 4986408.326 | N164: =MAX(0,A164-$J$11) -> 111 | O164: 0
A165: 130 | B165: Operacional | C165: 13480 | D165: =((D164*(1+$J$10))*(1-$J$20))+C165*$J$21*(1-$J$22)*(1-$J$23) -> 119427524.3 | E165: 0 | F165: 0 | G165: 5000 | H165: 67400 | J165: 0 | K165: 99069.68332 | L165: 80880 | M165: =M164*(1+$J$10)+SUM(I165:L165)-SUM(E165:H165) -> 5111410.439 | N165: 112 | O165: =MIN(0,-SUM(E165:H165)+SUM(I165:L165)+MAX(0,M164)) -> 0
A166: 131 | B166: Operacional | C166: 13545 | D166: 120949715.4 | E166: 0 | F166: 0 | G166: 5000 | H166: 67725 | J166: 0 | K166: 100332.3989 | L166: 81270 | M166: 5238177.774 | N166: 113 | O166: 0
A167: 132 | B167: Operacional | C167: 13609 | D167: 122472839.1 | E167: 0 | F167: 0 | G167: 5000 | H167: 68045 | J167: 0 | K167: 101595.888 | L167: 81654 | M167: 5366716.284 | N167: 114 | O167: 0
A168: 133 | B168: Operacional | C168: 13672 | D168: 123996719.1 | E168: 0 | F168: 0 | G168: 5000 | H168: 68360 | J168: 0 | K168: 102860.0045 | L168: 82032 | M168: 5497031.796 | N168: 115 | O168: 0
A169: 134 | B169: Operacional | C169: 13735 | D169: 125521350.5 | E169: 0 | F169: 0 | G169: 5000 | H169: 68675 | J169: 0 | K169: 104124.7444 | L169: 82410 | M169: 5629131.151 | N169: 116 | O169: 0
A170: 135 | B170: Operacional | C170: 13797 | D170: 127046558.5 | E170: 0 | F170: 0 | G170: 5000 | H170: 68985 | J170: 0 | K170: 105389.9625 | L170: 82782 | M170: 5763020.073 | N170: 117 | O170: 0
A171: 136 | B171: Operacional | C171: 13859 | D171: 128572339.2 | E171: 0 | F171: 0 | G171: 5000 | H171: 69295 | J171: 0 | K171: 106655.6558 | L171: 83154 | M171: 5898705.299 | N171: 118 | O171: 0
A172: 137 | B172: Operacional | C172: 13920 | D172: 130098519 | E172: 0 | F172: 0 | G172: 5000 | H172: 69600 | J172: 0 | K172: 107921.6801 | L172: 83520 | M172: 6036192.448 | N172: 119 | O172: 0
A173: 138 | B173: Operacional | C173: 13980 | D173: 131624925.2 | E173: 0 | F173: 0 | G173: 5000 | H173: 69900 | J173: 0 | K173: 109187.8922 | L173: 83880 | M173: 6175487.013 | N173: 120 | O173: 0
A174: 139 | B174: Operacional | C174: 14040 | D174: 133151556.3 | E174: 0 | F174: 0 | G174: 5000 | H174: 70200 | J174: 0 | K174: 110454.2909 | L174: 84240 | M174: 6316595.509 | N174: 121 | O174: 0
A175: 140 | B175: Operacional | C175: 14099 | D175: 134678240.8 | E175: 0 | F175: 0 | G175: 5000 | H175: 70495 | J175: 0 | K175: 111720.734 | L175: 84594 | M175: 6459523.327 | N175: 122 | O175: 0
A176: 141 | B176: Operacional | C176: 14158 | D176: 136204978.5 | E176: 0 | F176: 0 | G176: 5000 | H176: 70790 | J176: 0 | K176: 112987.2211 | L176: 84948 | M176: 6604276.88 | N176: 123 | O176: 0
A177: 142 | B177: Operacional | C177: 14216 | D177: 137731599 | E177: 0 | F177: 0 | G177: 5000 | H177: 71080 | J177: 0 | K177: 114253.6109 | L177: 85296 | M177: 6750861.46 | N177: 124 | O177: 0
A178: 143 | B178: Operacional | C178: 14273 | D178: 139257933 | E178: 0 | F178: 0 | G178: 5000 | H178: 71365 | J178: 0 | K178: 115519.7632 | L178: 85638 | M178: 6899282.238 | N178: 125 | O178: 0
A179: 144 | B179: Operacional | C179: 14330 | D179: 140783982.4 | E179: 0 | F179: 0 | G179: 5000 | H179: 71650 | J179: 0 | K179: 116785.6793 | L179: 85980 | M179: 7049545.405 | N179: 126 | O179: 0
A180: 145 | B180: Operacional | C180: 14386 | D180: 142309579.1 | E180: 0 | F180: 0 | G180: 5000 | H180: 71930 | J180: 0 | K180: 118051.2199 | L180: 86316 | M180: 7201656.034 | N180: 127 | O180: 0
A181: 146 | B181: Operacional | C181: 14442 | D181: 143834726 | E181: 0 | F181: 0 | G181: 5000 | H181: 72210 | J181: 0 | K181: 119316.3874 | L181: 86652 | M181: 7355620.218 | N181: 128 | O181: 0
A182: 147 | B182: Operacional | C182: 14497 | D182: 145359256.1 | E182: 0 | F182: 0 | G182: 5000 | H182: 72485 | J182: 0 | K182: 120581.0432 | L182: 86982 | M182: 7511442.931 | N182: 129 | O182: 0
A183: 148 | B183: Operacional | C183: 14552 | D183: 146883173.3 | E183: 0 | F183: 0 | G183: 5000 | H183: 72760 | J183: 0 | K183: 121845.1906 | L183: 87312 | M183: 7669130.172 | N183: 130 | O183: 0
A184: 149 | B184: Operacional | C184: 14606 | D184: 148406311.8 | E184: 0 | F184: 0 | G184: 5000 | H184: 73030 | J184: 0 | K184: 123108.692 | L184: 87636 | M184: 7828686.82 | N184: 131 | O184: 0
A185: 150 | B185: Operacional | C185: 14659 | D185: 149928506.5 | E185: 0 | F185: 0 | G185: 5000 | H185: 73295 | J185: 0 | K185: 124371.4106 | L185: 87954 | M185: 7990117.634 | N185: 132 | O185: 0
A186: 151 | B186: Operacional | C186: 14712 | D186: 151449763.7 | E186: 0 | F186: 0 | G186: 5000 | H186: 73560 | J186: 0 | K186: 125633.3514 | L186: 88272 | M186: 8153428.398 | N186: 133 | O186: 0
A187: 152 | B187: Operacional | C187: 14764 | D187: 152969919.5 | E187: 0 | F187: 0 | G187: 5000 | H187: 73820 | J187: 0 | K187: 126894.3786 | L187: 88584 | M187: 8318623.776 | N187: 134 | O187: 0
A188: 153 | B188: Operacional | C188: 14816 | D188: 154488981.1 | E188: 0 | F188: 0 | G188: 5000 | H188: 74080 | J188: 0 | K188: 128154.4981 | L188: 88896 | M188: 8485709.457 | N188: 135 | O188: 0
A189: 154 | B189: Operacional | C189: 14867 | D189: 156006785.6 | E189: 0 | F189: 0 | G189: 5000 | H189: 74335 | J189: 0 | K189: 129413.5748 | L189: 89202 | M189: 8654690.015 | N189: 136 | O189: 0
A190: 155 | B190: Operacional | C190: 14918 | D190: 157523341.3 | E190: 0 | F190: 0 | G190: 5000 | H190: 74590 | J190: 0 | K190: 130671.6155 | L190: 89508 | M190: 8825571.045 | N190: 137 | O190: 0
A191: 156 | B191: Operacional | C191: 14968 | D191: 159038486.2 | E191: 0 | F191: 0 | G191: 5000 | H191: 74840 | J191: 0 | K191: 131928.486 | L191: 89808 | M191: 8998357.03 | N191: 138 | O191: 0
A192: 157 | B192: Operacional | C192: 15018 | D192: 160552229.7 | E192: 0 | F192: 0 | G192: 5000 | H192: 75090 | J192: 0 | K192: 133184.1939 | L192: 90108 | M192: 9173053.473 | N192: 139 | O192: 0
A193: 158 | B193: Operacional | C193: 15067 | D193: 162064410.9 | E193: 0 | F193: 0 | G193: 5000 | H193: 75335 | J193: 0 | K193: 134438.6058 | L193: 90402 | M193: 9349664.766 | N193: 140 | O193: 0
A194: 159 | B194: Operacional | C194: 15116 | D194: 163575040 | E194: 0 | F194: 0 | G194: 5000 | H194: 75580 | J194: 0 | K194: 135691.7302 | L194: 90696 | M194: 9528196.323 | N194: 141 | O194: 0
A195: 160 | B195: Operacional | C195: 15164 | D195: 165083957.1 | E195: 0 | F195: 0 | G195: 5000 | H195: 75820 | J195: 0 | K195: 136943.4345 | L195: 90984 | M195: 9708652.445 | N195: 142 | O195: 0
A196: 161 | B196: =IF(A196>$J$11,"Operacional","Pré-operacional") -> Operacional | C196: =IF(B196="Pré-operacional",0,INT(IF(N196<13,$J$18,$J$19)+(C195*(1-$J$20)))) -> 15212 | D196: 166591173.4 | E196: =IF(B196="Pré-operacional",$J$12*$J$9,0) -> 0 | F196: =IF(B196="Pré-operacional",($J$13+$J$14+$J$15)/$J$11,0) -> 0 | G196: =IF(B196="Operacional",$J$16,0) -> 5000 | H196: =C196*$J$17 -> 76060 | J196: =C196*$J$21*(1-$J$22)*$J$23 -> 0 | K196: =(((1+$J$24)^(1/12))-1)*D196 -> 138193.7279 | L196: =C196*$J$21*$J$22*$J$25 -> 91272 | M196: 9891038.456 | N196: =MAX(0,A196-$J$11) -> 143 | O196: 0
A197: 162 | B197: Operacional | C197: 15259 | D197: 168096530.1 | E197: 0 | F197: 0 | G197: 5000 | H197: 76295 | J197: 0 | K197: 139442.4786 | L197: 91554 | M197: =M196*(1+$J$10)+SUM(I197:L197)-SUM(E197:H197) -> 10075358.57 | N197: 144 | O197: 0
A198: 163 | B198: Operacional | C198: 15306 | D198: 169600039.3 | E198: 0 | F198: 0 | G198: 5000 | H198: 76530 | J198: 0 | K198: 140689.6968 | L198: 91836 | M198: 10261618.02 | N198: 145 | O198: 0
A199: 164 | B199: Operacional | C199: 15352 | D199: 171101543 | E199: 0 | F199: 0 | G199: 5000 | H199: 76760 | J199: 0 | K199: 141935.2514 | L199: 92112 | M199: 10449820.94 | N199: 146 | O199: 0
A200: 165 | B200: Operacional | C200: 15398 | D200: 172601054.5 | E200: 0 | F200: 0 | G200: 5000 | H200: 76990 | J200: 0 | K200: 143179.1532 | L200: 92388 | M200: 10639972.46 | N200: 147 | O200: 0
A201: 166 | B201: Operacional | C201: 15444 | D201: 174098586.6 | E201: 0 | F201: 0 | G201: 5000 | H201: 77220 | J201: 0 | K201: 144421.4132 | L201: 92664 | M201: 10832077.78 | N201: 148 | O201: 0
A202: 167 | B202: Operacional | C202: 15489 | D202: 175593982.3 | E202: 0 | F202: 0 | G202: 5000 | H202: 77445 | J202: 0 | K202: 145661.901 | L202: 92934 | M202: 11026140.95 | N202: 149 | O202: 0
A203: 168 | B203: Operacional | C203: 15534 | D203: 177087255.6 | E203: 0 | F203: 0 | G203: 5000 | H203: 77670 | J203: 0 | K203: 146900.6281 | L203: 93204 | M203: 11222167.07 | N203: 150 | O203: 0
A204: 169 | B204: Operacional | C204: 15578 | D204: 178578250.4 | E204: 0 | F204: 0 | G204: 5000 | H204: 77890 | J204: 0 | K204: 148137.4651 | L204: 93468 | M204: 11420160.12 | N204: 151 | O204: 0
A205: 170 | B205: Operacional | C205: 15622 | D205: 180066981.5 | E205: 0 | F205: 0 | G205: 5000 | H205: 78110 | J205: 0 | K205: 149372.4243 | L205: 93732 | M205: 11620125.11 | N205: 152 | O205: 0
A206: 171 | B206: Operacional | C206: 15665 | D206: 181553293.8 | E206: 0 | F206: 0 | G206: 5000 | H206: 78325 | J206: 0 | K206: 150605.377 | L206: 93990 | M206: 11822065.92 | N206: 153 | O206: 0
... 29 more rows

Sheet Cronog
A2: Cronograma modelo de implantação de plano instituído | B2: Meses
B3: 1 | C3: 2 | D3: 3 | E3: 4 | F3: 5 | G3: 6 | H3: 7 | I3: 8 | J3: 9 | K3: 10 | L3: 11 | M3: 12 | N3: 13 | O3: 14 | P3: 15 | Q3: 16 | R3: 17 | S3: 18 | T3: 19 | U3: 20 | V3: 21 | W3: 22 | X3: 23 | Y3: 24
A4: Reflexões iniciais sobre o propósito da criação do plano
A5: Definição do meio que se utilizará para criação do plano e das suas fontes de custeio
A6: Elaboração/aprovação do estudo de viabilidade
A7: Elaboração do regulamento, do convênio de adesão e demais documentos para submissão à Previc
A8: Análise pela Previc, atendimento de exigências pela Entidade e aprovação
A9: Preparação para operacionalização do plano
A10: Implantação do plano
A11: Primeira avaliação semestral
